Cogmind - Beta 11 X8 @@@ ROGUE MODE // 2021.12.28 @ 22:03:53 Player: thingamajigger Result: Destroyed by as-86764 with Assembled Maul Performance ------------- Evolutions (0) 0 Regions Visited (4) 800 Robots Destroyed (22) 110 Value Destroyed (443) 443 Prototype IDs (25) 500 Alien Tech Used (0) 0 Bonus (48) 48 TOTAL SCORE: 1901 Bonus ------- Aligned with FarCom 300 Friendly Fire -252 Cogmind --------- Core Integrity 0/250 Matter 243/300 Energy 240/250 System Corruption 0% Temperature Cool (20) Movement Treading (240) Ox1 Location -9/Mines Parts ------- > --- POWER (1) -------- Ion Engine > --- PROPULSION (2) --- Light Treads Light Treads > --- UTILITY (2) ------ High-capacity Storage Unit > --- WEAPON (2) ------- Assault Rifle Grenade Launcher > --- INVENTORY (20) --- Wheel Improved Heat Sink Large Storage Unit Humpback Humpback Humpback Large Matter Pod (150) Visual Processing Unit Signal Interpreter 0b10 Alert Chip Medium Armor Plating Medium Armor Plating Light EM Pulse Cannon Light EM Pulse Cannon Light EM Pulse Cannon Assault Rifle Light Assault Rifle Peak State ------------ > --- POWER ------------ Ion Engine > --- PROPULSION ------- Light Treads Light Treads > --- UTILITY ---------- Large Storage Unit Medium Armor Plating > --- WEAPON ----------- Light EM Pulse Cannon Light EM Pulse Cannon > --- INVENTORY -------- Ion Engine Light Treads Wheel Large Matter Pod Medium Armor Plating Medium Armor Plating Light EM Pulse Cannon Light EM Pulse Cannon Assault Rifle Assault Rifle Grenade Launcher [Rating: 11] Favorites ----------- Power Ion Engine Engine Ion Engine Propulsion Light Treads Treads Light Treads Wheel Wheel Utility Medium Armor Plating Storage High-capacity Storage Unit Protection Medium Armor Plating Weapon Assault Rifle Energy Cannon Light EM Pulse Cannon Ballistic Gun Assault Rifle Launcher Grenade Launcher Build | -11 -10 -10 -10 -9 ------- Run | Scr Mat Min Exi Min Slots Evolved . | . . . . . Power . | . . . . . Propulsion . | . . . . . Utility . | . . . . . Weapon . | . . . . . Parts Attached 22 | 6 10 5 . 1 Power 2 | 1 . 1 . . Engine 2 | 1 . 1 . . Core . | . . . . . Reactor . | . . . . . Propulsion 5 | 2 2 1 . . Treads 4 | 2 1 1 . . Leg . | . . . . . Wheel 1 | . 1 . . . Hover . | . . . . . Flight . | . . . . . Utility 6 | 1 4 1 . . Device . | . . . . . Storage 4 | 1 2 1 . . Processor . | . . . . . Hackware . | . . . . . Protection 2 | . 2 . . . Artifact . | . . . . . Weapon 9 | 2 4 2 . 1 Energy Gun . | . . . . . Energy Cannon 3 | . 3 . . . Ballistic Gun 5 | 2 1 2 . . Ballistic Cannon . | . . . . . Launcher 1 | . . . . 1 Special Weapon . | . . . . . Impact Weapon . | . . . . . Slashing Weapon . | . . . . . Piercing Weapon . | . . . . . Special Melee Weapon . | . . . . . Unidentified Prototypes . | . . . . . Parts Lost 5 | . 2 2 . 1 Power 1 | . . 1 . . Propulsion 2 | . 1 1 . . Utility 2 | . 1 . . 1 Weapon . | . . . . . Highest Loss Streak 2 | . 1 2 . 1 Average Slot Usage (%) 99 | . 99 100 100 100 Engine 14 | . 14 14 14 14 Treads 26 | . 23 28 28 28 Wheel 1 | . 3 . . . Storage 14 | . 14 14 14 14 Protection 13 | . 13 14 14 14 Energy Cannon 6 | . 12 11 . . Ballistic Gun 21 | . 15 16 28 28 Naked Turns . | . . . . . Heaviest Build 56 | 14 40 56 56 56 Greatest Support 40 | 40 40 40 40 40 Greatest Overweight (x) 3 | 2 3 1 1 1 Average Overweight (x) . | . . . 1 1 Largest Inventory Capacity 20 | 8 15 20 20 20 Average Capacity 16 | 7 11 16 20 20 Most Carried 20 | . 13 13 20 20 Average Carried 13 | . 9 12 16 19 Final Capacity 20 | 8 15 20 20 20 Final Carried 20 | . 13 13 20 20 Class Distribution -------------------- 100% | Mutant Dominant Class ---------------- Mutant | -10/Materials Mutant | -10/Mines Mutant | -10/Exiles Mutant | -9/Mines Resources | -11 -10 -10 -10 -9 ----------- Run | Scr Mat Min Exi Min Matter Collected 785 | 121 565 99 . . Remotely . | . . . . . Salvage Created 775 | . 385 331 . 59 Parts 46 | . 26 16 . 4 Haulers Intercepted 2 | . 2 . . . Recyclers Shooed . | . . . . . Parts Field Recycled . | . . . . . Retrieved Matter . | . . . . . Parts Self-Destructed . | . . . . . Prevented . | . . . . . Kills | -11 -10 -10 -10 -9 ------- Run | Scr Mat Min Exi Min Combat Hostiles Destroyed 14 | . 7 7 . . Guns 7 | . 6 1 . . Cannons 6 | . 1 5 . . AOE 1 | . . 1 . . Classes Destroyed 6 | . 5 1 . . Worker 1 | . 1 . . . Hauler 2 | . 2 . . . Recycler 1 | . . 1 . . Watcher 3 | . 3 . . . Swarmer 6 | . 3 3 . . Grunt 8 | . 4 4 . . Thug 1 | . . . . 1 Best Kill Streak 6 | . 6 3 . . Combat Bots Only 3 | . 3 3 . . Max Kills in Single Turn 2 | . 1 2 . 1 Gunslinging . | . . . . . Exploded 1 | . . 1 . . Melee . | . . . . . Uniques/NPCs Destroyed . | . . . . . Combat | -11 -10 -10 -10 -9 -------- Run | Scr Mat Min Exi Min Damage Taken 1084 | . 604 320 . 160 Core 255 | . 89 64 . 102 Absorbed by Shields . | . . . . . Core Remaining (%) 100 | 100 . . . . Volleys Fired 66 | . 39 19 . 8 Largest 2 | . 2 2 . 2 Hottest 112 | . 112 112 . 40 Shots Fired 131 | . 78 38 . 15 Gun 94 | . 62 18 . 14 Cannon 36 | . 16 20 . . Launcher 1 | . . . . 1 Special . | . . . . . Kinetic 94 | . 62 18 . 14 Thermal 6 | . 6 . . . Explosive 1 | . . . . 1 Electromagnetic 30 | . 10 20 . . Robot Hit Streak 12 | . 9 12 . 8 Robot Miss Streak 3 | . 2 3 . 2 Penetration Max . | . . . . . Secondary Targets 2 | . 2 . . . Max Gunslinging Chain 1 | . 1 . . . Shots Hit Robots 83 | . 52 20 . 11 Core Hits 35 | . 17 12 . 6 Critical Kills . | . . . . . Critical Parts Destroyed . | . . . . . Critical Strikes . | . . . . . Melee Attacks . | . . . . . Impact . | . . . . . Slashing . | . . . . . Piercing . | . . . . . Sneak Attacks . | . . . . . Combat Hostiles . | . . . . . Follow-up Attacks . | . . . . . Damage Inflicted 1536 | . 803 471 . 262 Guns 831 | . 538 141 . 152 Cannons 488 | . 264 224 . . Explosions 216 | . . 106 . 110 Melee . | . . . . . Ramming 1 | . 1 . . . Kinetic 831 | . 538 141 . 152 Thermal 177 | . 71 106 . . Explosive 110 | . . . . 110 Electromagnetic 417 | . 193 224 . . Impact . | . . . . . Slashing . | . . . . . Piercing . | . . . . . Highest Corruption . | . . . . . Average Corruption . | . . . . . Corruption Purged . | . . . . . Overload Shots . | . . . . . Overflow Damage 5 | . 5 . . . Projectiles 5 | . 5 . . . Explosions . | . . . . . Melee . | . . . . . Knockbacks . | . . . . . Impact . | . . . . . Kinetic . | . . . . . Secondary . | . . . . . Self-Inflicted Damage 80 | . . 42 . 38 Shots 2 | . . 1 . 1 Rammed . | . . . . . Targets Rammed 1 | . 1 . . . Kicked . | . . . . . Crushed 1 | . 1 . . . Highest Temperature 232 | . 232 189 . 3 Average Temperature 103 | . 116 87 . 3 Received Heat Transfer 564 | . 351 153 . 60 Effects 3 | . 3 . . . Energy Bleed 3 | . 3 . . . Siege Activations . | . . . . . Robots Corrupted . | . . . . . Combat Hostiles . | . . . . . Parts Fried 3 | . 1 2 . . Impact Corruptions . | . . . . . Robots Melted . | . . . . . Combat Hostiles . | . . . . . Parts Melted . | . . . . . Heat Transferred 248 | . 148 100 . . Parts Sabotaged . | . . . . . Parts Stolen . | . . . . . Parts Stripped . | . . . . . Power Chain Reactions 1 | . . 1 . . Missiles Intercepted . | . . . . . Alert | -11 -10 -10 -10 -9 ------- Run | Scr Mat Min Exi Min Peak Influence 196 | . 196 170 . . Initial . | . . . . . Average 63 | . 52 121 . . Maximum Alert Level . | . . . . . Low Security (%) 100 | 100 100 100 . 100 Level 1 . | . . . . . Level 2 . | . . . . . Level 3 . | . . . . . Level 4 . | . . . . . Level 5 . | . . . . . High Security . | . . . . . Max Security . | . . . . . Squads Dispatched 1 | . 1 . . . Investigation . | . . . . . Extermination . | . . . . . Reinforcement 1 | . 1 . . . Assault . | . . . . . Garrison . | . . . . . Intercept . | . . . . . Construction Impeded . | . . . . . Haulers Reinforced . | . . . . . Active Scanning Responses . | . . . . . Cargo Convoy Interrupts . | . . . . . Stealth | -11 -10 -10 -10 -9 --------- Run | Scr Mat Min Exi Min Distress Signals 2 | . 2 . . . Communications Jammed . | . . . . . Distress Signals . | . . . . . Times Spotted 24 | . 15 6 . 3 Peak Tracking Total 4 | . 4 2 . 3 Tactical Retreats . | . . . . . Traps | -11 -10 -10 -10 -9 ------- Run | Scr Mat Min Exi Min Traps Triggered . | . . . . . Indirectly . | . . . . . Trap Hack Attempts . | . . . . . Triggered . | . . . . . Disarmed . | . . . . . Reprogrammed . | . . . . . Reused . | . . . . . Traps Extracted . | . . . . . Installed . | . . . . . Triggered . | . . . . . Machines | -11 -10 -10 -10 -9 ---------- Run | Scr Mat Min Exi Min Machines Disabled . | . . . . . Max in Single Turn . | . . . . . Machines Sabotaged . | . . . . . Garrisons Compromised . | . . . . . Overloaded Fab Kills . | . . . . . Hacking | -11 -10 -10 -10 -9 --------- Run | Scr Mat Min Exi Min Machines Accessed 6 | . 4 . 2 . Terminals 4 | . 4 . . . Fabricators . | . . . . . Repair Stations . | . . . . . Recycling Units . | . . . . . Scanalyzers . | . . . . . Garrison Access . | . . . . . Total Hacks 9 | . 7 . 2 . Successful 6 | . 4 . 2 . Failed 2 | . 2 . . . Catastrophic . | . . . . . Database Lockouts 1 | . 1 . . . Manual 6 | . 5 . 1 . Terminals 7 | . 7 . . . Fabricators . | . . . . . Repair Stations . | . . . . . Recycling Units . | . . . . . Scanalyzers . | . . . . . Garrison Access . | . . . . . Terminal Hacks 6 | . 4 . 2 . Record 1 | . . . 1 . Robot Analysis 2 | . 2 . . . Prototype ID Bank 1 | . 1 . . . Locate Traps 1 | . 1 . . . EX-Prototype ID Bank 1 | . . . 1 . Fabricator Hacks . | . . . . . Repair Station Hacks . | . . . . . Recycling Unit Hacks . | . . . . . Scanalyzer . | . . . . . Garrison Access Hacks . | . . . . . Unauthorized Hacks . | . . . . . Terminals . | . . . . . Fabricators . | . . . . . Repair Stations . | . . . . . Recycling Units . | . . . . . Scanalyzers . | . . . . . Garrison Access . | . . . . . Data Cores Recovered . | . . . . . Used . | . . . . . Hacking Detections 3 | . 3 . . . Full Trace Events . | . . . . . Feedback Events . | . . . . . Feedback Blocked . | . . . . . Robot Schematics Acquired . | . . . . . Robots Built . | . . . . . Authchips . | . . . . . Time . | . . . . . Total Robot Build Rating . | . . . . . Part Schematics Acquired . | . . . . . Parts Built . | . . . . . Authchips . | . . . . . Time . | . . . . . Total Part Build Rating . | . . . . . Parts Repaired . | . . . . . Time . | . . . . . Parts Recycled . | . . . . . Recycled Matter . | . . . . . Retrieved Matter . | . . . . . Retrieved Components . | . . . . . Parts Scanalyzed . | . . . . . Part Schematics Acquired . | . . . . . Parts Damaged . | . . . . . Bothacking | -11 -10 -10 -10 -9 ------------ Run | Scr Mat Min Exi Min Used RIF Installer . | . . . . . Robots Hacked . | . . . . . Non-combat . | . . . . . Combat . | . . . . . Robot Hacks Applied . | . . . . . Relay Couplers Released . | . . . . . Fabnet Peak Effective % . | . . . . . Robots Rewired . | . . . . . Allies Hacked . | . . . . . Hacks Repelled . | . . . . . Allies | -11 -10 -10 -10 -9 -------- Run | Scr Mat Min Exi Min Total Allies 1 | . . . . 1 Largest Group 1 | . . . . 1 Highest-Rated Group 31 | . . . . 31 Highest-Rated Ally 31 | . . . . 31 Total Orders . | . . . . . Ally Attacks . | . . . . . Total Damage . | . . . . . Kills . | . . . . . Allies Corrupted . | . . . . . Allies Melted . | . . . . . Intel | -11 -10 -10 -10 -9 ------- Run | Scr Mat Min Exi Min Robot Analysis Total 2 | . 2 . . . Derelict Logs Recovered 2 | . . 2 . . Drone Launches . | . . . . . Drone Recoveries . | . . . . . Exploration | -11 -10 -10 -10 -9 ------------- Run | Scr Mat Min Exi Min Turns Passed 2386 | 75 849 474 789 199 Spaces Moved 1125 | 46 457 222 328 72 Core 12 | 12 . . . . Treads 946 | 34 290 222 328 72 Legs . | . . . . . Wheels 167 | . 167 . . . Hover . | . . . . . Flight . | . . . . . Fastest Speed 50 | 50 110 160 240 240 Average Speed 186 | 146 146 181 240 240 Slowest Speed 240 | 160 240 240 240 240 Overloaded Moves . | . . . . . Propulsion Burnouts . | . . . . . Robots Hopped . | . . . . . Cave-ins Triggered . | . . . . . Exploration Rate (%) 41 | 3 62 46 69 25 Regions Visited 4 Branch Regions 3 Pre-discovered Areas 1 | . . . 1 . Known Exits Taken . | . . . . . Unknown Exits Taken 4 | 1 1 1 1 . Scrap Searched 1 | . . 1 . . Spaces Dug . | . . . . . Terrain Destroyed 15 | . . 8 . 7 Melee . | . . . . . Projectile . | . . . . . AOE 15 | . . 8 . 7 Terrain Rammed . | . . . . . Walls Destroyed . | . . . . . Machines Disabled . | . . . . . Actions | -11 -10 -10 -10 -9 --------- Run | Scr Mat Min Exi Min Total 1280 | 51 559 253 331 86 Wait 37 | . 29 7 . 1 Move 1121 | 45 456 221 327 72 Hop . | . . . . . Pick Up 25 | . 18 1 4 2 Fast Attach 8 | 6 2 . . . Attach 3 | . 1 2 . . Detach . | . . . . . Swap 11 | . 7 3 . 1 Drop 8 | . 6 . . 2 Fire 66 | . 39 19 . 8 Melee . | . . . . . Ram . | . . . . . Kick . | . . . . . Crush 1 | . 1 . . . Escape Stasis . | . . . . . Rewire . | . . . . . Trap . | . . . . . Miscellaneous . | . . . . . Route ------- -11/Scrapyard -10/Materials (discovered 2 exits: *Mat / [*Min]) -10/Mines (discovered 2 exits: Mat / *Exi) -10/Exiles -9/Mines History --------- Turn | Location | Event 16 | -11/Scrapyard | Discovered new exit (range 15) 76 | -11/Scrapyard | Entered Materials 310 | -10/Materials | Build established: Mutant 417 | -10/Materials | Central database locked down 427 | -10/Materials | Discovered new exit (range 9) 499 | -10/Materials | Discovered new exit (range 3) 925 | -10/Materials | Entered Mines 1117 | -10/Mines | Core integrity fell below 50% 1254 | -10/Mines | Identified exit to Materials 1331 | -10/Mines | Learned 8 Materials zone layouts 1389 | -10/Mines | Deemed a non-threat by the Exiles lab entrance 1389 | -10/Mines | Discovered new exit (range 5) 1399 | -10/Mines | Entered Exiles 1457 | -10/Exiles | Met 8R-AWN 1498 | -10/Exiles | Met EX-HEX 1615 | -10/Exiles | Met EX-DEC 1654 | -10/Exiles | Learned location of Zion (-7) 1849 | -10/Exiles | Met EX-BIN 1882 | -10/Exiles | Aligned with FarCom system 1885 | -10/Exiles | Given EX-Vault access code 1940 | -10/Exiles | Opened EX-Vault 1957 | -10/Exiles | Found 0b10 Alert Chip 2008 | -10/Exiles | Warned to stay clear of 0b10 Research branches 2157 | -10/Exiles | Discovered new exit (range 15) 2188 | -10/Exiles | Left Exiles lab with 0b10 Alert Chip 2188 | -10/Exiles | Entered Mines 2191 | -9/Mines | Received a Mining Laser from a helpful Derelict 2352 | -9/Mines | Assembled infested the area 2357 | -9/Mines | Assisted by a Guerilla fighting off Assembled 2387 | -9/Mines | Core integrity fell below 20% 2387 | -9/Mines | Destroyed by as-86764 with Assembled Maul Last Messages --------------- 02236_ Dropped Lgt. EM Pulse Cannon. 02241_ Acquired Imp. Heat Sink. 02245_ Dropped Imp. Heat Sink. 02245_ Acquired Imp. Heat Sink. 02255_ K-01 Serf collects debris. 02258_ R-06 Scavenger collects Lgt. EM Pulse Cannon. 02260_ K-01 Serf collects debris. 02262_ R-06 Scavenger collects Carbon-fiber Leg. 02263_ K-01 Serf collects debris. 02265_ R-06 Scavenger collects Imp. Heat Sink. 02267_ R-06 Scavenger collects Lgt. Angular Momentum Engine. 02268_ K-01 Serf collects debris. 02352_ ALERT: Infestation in the mines, dispatching Demolisher response squad. 02357_ A derelict emerges from the shadows: "You need to get out of here! I've been tracking a group of Assembled to figure out where they're coming from, and they're closing on this area, come on!" 02387_ Destroyed Asb. Hover Unit. 02387_ Med. Armor Plating destroyed. 02387_ Destroyed Med. Armor Plating. Map ----- +----------------------------------------------------+ | | | | | | | ????????????????????????????????????????????????? | | ????????????????????????????????????????????????? | | ???????????????????????###??????????????????????? | | ?###??????????????????? ??????????????????????? | | ## ##????????????????"" ???????????????????????? | | # ##???????????????"" ???????????????????????? | | # ##??????????????"" ???????????????????????? | | # #?????????????? ???????????????????????? | | #??????????????# #???????????????????????? | | #??????######### #???????????????????????? | | #??????# ## #???????????????????????? | | #??????# #### ## #???????????????????????? | | ##?????# #??# ## #???????????????????????? | | ##???## #??# #???????????????????????? | | # ##?## ##?#### #???????????????????????? | | ## ### #????# #??####???? $##?????????? | | ?### ##???# ### ### ##????????? | | ???## """ ###?# #????????? | | ????# """ ### #????????? | | ????## """ #### ## #????????? | | ?????## #?# a #???? ###??????????? | | ??????# #### aa #????????????????????? | | ?????## ### #####?# @ #????????????????????? | | ????## ##?## #????# #????????????????????? | | ????# ##???# #????# #???????????????????? | | ???# #???? #????# #??????????????????? | | ? #????###????## #??????????????????? | | # ## ##????????????# #??????????????????? | | #??## #??????????????# #??????????????????? | | ????##???????????????# ## #??????????????????? | | ?????????????????????##?## ##??????????????????? | | ??????????????????????????###???????????????????? | | ????????????????????????????????????????????????? | | ????????????????????????????????????????????????? | | ????????????????????????????????????????????????? | | ????????????????????????????????????????????????? | | ????????????????????????????????????????????????? | | ????????????????????????????????????????????????? | | ????????????????????????????????????????????????? | | ????????????????????????????????????????????????? | | ????????????????????????????????????????????????? | | ????????????????????????????????????????????????? | | ????????????????????????????????????????????????? | | ????????????????????????????????????????????????? | | ????????????????????????????????????????????????? | | ????????????????????????????????????????????????? | | ????????????????????????????????????????????????? | +----------------------------------------------------+ Best States ------------- Heat Dissipation 25 Energy Generation 10 Energy Capacity 250 Matter Stores 300 Matter Capacity 300 Sight Range 16 Terrain Scan Density 10 Armor Coverage 225 Evasion (%) 40 Recoil Reduction 2 Item Schematics ----------------- None Robot Schematics ------------------ None Fabricated ------------ Nothing Alien Tech Used ----------------- None Achievements -------------- None Challenges ------------ None Game ------ Seed TerrainSapperNetwork Manual? 0 Play Time 00:07:34 Cumulative 138.5 hours Start 2021.12.28 @ 21:57:05 End 2021.12.28 @ 22:03:53 Sessions 1 Manual Loads 0 Difficulty Rogue Special Mode None Game No. 234 Rogue 217 Adventurer 4 Explorer 13 Win Type - Total 8 Types 6/0/0/2/0/0/0/0/0 Lore% 64 Gallery% 82 Achievement% 68 Wizard Run 0 Options --------- ASCII 0 Keyboard 1 Movement Numpad Keybinds 0 Fullscreen 1 Font 18/SmallcapsGlow Map View 76x50 Tactical HUD 1 Map Filters NONE Filters NONE Steam 1 RUN: a260e67d-4528-41fe-a7bd-671546bc1a61